bitfinex-derivatives/quotes_ETHF0:USTF0_20220103
["timestamp","ask_amount","ask_price","bid_price","bid_amount"]
[1641245954904,2.00479,3725.4,3725.2,1e-08]
[1641245956002,2.00479,3725.4,3724.4,2.93413313]
[1641245956402,0.89264971,3725.3,3724.3,32.22499]
[1641245956601,0.89264971,3725.3,3724.3,2.00479]
[1641245956801,1.499,3724.9,3723.5,30.4332]
[1641245957007,3.0,3724.5,3723.5,30.4332]
[1641245957203,14.58,3724.5,3723.4,2.22813313]
[1641245957805,3.0,3724.5,3723.4,2.22813313]
[1641245958004,3.0,3724.5,3723.1,2.22813313]
[1641245958206,1.499,3724.4,3723.1,2.22813313]
[1641245958405,3.0,3724.0,3723.1,2.22813313]
[1641245958604,3.835,3724.0,3723.1,2.22813313]
[1641245958805,2.00479,3723.6,3723.1,2.22813313]
[1641245959004,2.00479,3723.6,3722.8,5.71287772]
[1641245959406,2.00479,3723.6,3723.0,8.51764922]
[1641245959607,2.00479,3723.6,3723.0,7.78604922]
[1641245960208,2.00479,3723.6,3723.2,1.5]
[1641245960909,2.00479,3723.6,3723.1,3.70808772]
[1641245961109,2.72559,3723.6,3723.1,3.70808772]
[1641245961512,1.12600388,3723.5,3723.1,3.70808772]
[1641245961710,1.12600388,3723.5,3723.0,3.70808772]
[1641245962113,2.72559,3723.6,3723.0,3.70808772]
[1641245962310,2.00479,3723.6,3723.1,0.03031993]
[1641245962710,5.60345693,3723.6,3723.1,0.03031993]
[1641245963711,5.60345693,3723.6,3723.0,0.03031993]
[1641245963912,6.32295693,3723.6,3723.2,0.03031993]
[1641245964313,6.32295693,3723.6,3723.1,0.03031993]
[1641245964513,2.63880445,3723.5,3723.3,0.03031993]
[1641245964714,2.63880445,3723.5,3723.2,0.03031993]
[1641245964912,2.63880445,3723.5,3723.4,0.03031993]
[1641245965114,2.63880445,3723.5,3723.3,0.03031993]
[1641245965813,2.63880445,3723.5,3723.1,0.03031993]
[1641245966013,2.63880445,3723.5,3723.4,0.03031993]
[1641245966214,2.63880445,3723.5,3723.2,0.03031993]
[1641245966419,2.63880445,3723.5,3723.4,0.03031993]
[1641245966614,2.00479,3724.0,3723.4,0.7012]
[1641245966813,2.00479,3724.0,3723.7,1.5]
[1641245967017,2.00479,3724.0,3723.8,0.229991]
[1641245967217,2.00479,3724.0,3723.6,1.5]
[1641245967415,2.00479,3724.0,3723.9,0.03031993]
[1641245967713,2.00479,3724.0,3723.7,0.03031993]
[1641245967914,2.00479,3724.0,3723.9,0.26031093]
[1641245968113,2.00479,3724.0,3723.8,0.03031993]
[1641245968315,2.00479,3724.0,3723.9,0.03031993]
[1641245968715,2.00479,3724.0,3723.6,0.03031993]
[1641245969015,2.00479,3724.0,3723.9,0.03031993]
[1641245969215,0.18582438,3724.0,3723.9,0.229991]
[1641245969415,0.18582438,3724.0,3723.9,0.26031093]
[1641245969818,1.19611605,3724.8,3723.9,0.90901093]
[1641245970017,1.19611605,3724.9,3724.4,1.5]
[1641245970215,1.19611605,3724.9,3724.5,0.128157]
[1641245970615,1.19611605,3724.9,3724.5,0.15847693]
[1641245970818,1.19611605,3724.9,3724.7,2.00479]
[1641245971315,1.19611605,3724.9,3724.8,0.03031993]
[1641245971916,1.19611605,3724.9,3724.8,0.26031093]
[1641245972316,1.19611605,3725.4,3724.8,0.26031093]
[1641245972517,1.19611605,3725.4,3724.8,0.03031993]
[1641245972714,1.19611605,3725.4,3724.9,0.03031993]
[1641245973117,1.19611605,3725.4,3724.8,0.03031993]
[1641245973317,1.19611605,3725.4,3725.0,0.03031993]
[1641245973516,1.4051503,3725.5,3725.0,1.46980269]
[1641245973716,3.0,3725.4,3725.1,0.03031993]
[1641245973922,0.77503517,3725.1,3725.0,1.46980269]
[1641245974318,4.53132814,3725.4,3725.0,1.46980269]
[1641245974517,5.87338664,3725.4,3724.7,2.00479]
[1641245974917,3.0,3724.9,3724.7,2.00479]
[1641245975317,3.0,3724.9,3724.8,0.03031541]
[1641245976121,0.96652536,3724.7,3723.3,1.46980269]
[1641245976318,3.0,3724.3,3722.9,1.46980269]
[1641245976530,3.5907,3724.3,3722.9,1.46980269]
[1641245976720,2.00479,3723.8,3723.0,2.00479]
[1641245976919,2.00479,3723.8,3723.1,0.128157]
[1641245977520,2.00479,3723.8,3723.2,0.03032037]
[1641245981129,2.00479,3723.8,3723.4,1.5]
[1641245981332,0.96652536,3724.7,3723.7,1.5]
[1641245981532,0.96652536,3724.7,3723.8,1.5]
[1641245981733,30.5999,3725.3,3723.9,0.128157]
[1641245981933,30.5999,3725.3,3723.9,0.15847737]
[1641245982135,30.5999,3725.3,3724.0,0.03032037]
[1641245982536,1.34207471,3725.4,3724.0,0.03032037]
[1641245982940,2.00479,3724.7,3724.0,0.03032037]
[1641245987141,2.00479,3724.7,3724.1,1.5]
[1641245987540,2.00479,3724.7,3724.2,0.03032037]
[1641245988541,2.00479,3724.7,3724.0,0.03032037]
[1641245988743,2.00479,3724.7,3724.3,0.03032037]
[1641245989143,2.00479,3724.7,3724.1,0.03032037]
[1641245989743,2.00479,3724.7,3724.0,0.03032037]
[1641245989945,2.76259,3724.7,3724.2,0.03032037]
[1641245990146,2.76259,3724.7,3724.1,0.03032037]
[1641245990545,2.76259,3724.7,3724.3,0.03032037]
[1641245990751,2.76259,3724.7,3724.2,0.03032037]
[1641245991047,2.76259,3724.7,3724.4,0.03032037]
[1641245991249,2.76259,3724.7,3724.5,0.229991]
[1641245991448,2.76259,3724.7,3724.1,0.03032037]
[1641245991648,2.76259,3724.7,3724.6,0.03032037]
[1641245991848,2.76259,3724.7,3724.2,0.03032037]
[1641245992348,2.76259,3724.7,3724.1,0.03032037]
[1641245992551,2.76259,3724.7,3724.3,0.03032037]
[1641245992751,2.76259,3724.7,3724.2,0.03032037]
[1641245993153,2.76259,3724.7,3724.4,0.03032037]
[1641245993355,2.76259,3724.7,3724.5,0.229991]
[1641245993652,2.00479,3724.7,3724.6,1.5]
[1641245993851,2.00479,3724.7,3724.6,1.53032037]
[1641245994551,1.21037332,3725.5,3724.6,1.53032037]
[1641245994753,1.21037332,3725.5,3724.8,1.5]
[1641245994952,1.21037332,3725.5,3724.8,3.50479]
[1641245995154,1.21037332,3725.5,3724.9,0.03032037]
[1641245995351,2.00479,3725.7,3724.9,0.03032037]
[1641245995753,2.00479,3725.7,3725.0,1.5]
[1641245996155,2.00479,3725.7,3725.1,0.03032037]
[1641245997255,2.00479,3725.7,3725.6,1.46656636]
[1641245997755,2.00479,3725.7,3725.6,1.49688673]
[1641246000460,3.21685933,3725.7,3725.6,1.72687773]
[1641246000661,3.21685933,3725.7,3725.6,0.03032037]
[1641246004465,3.43438712,3725.7,3725.6,0.03032037]
[1641246004967,3.43438712,3725.7,3725.5,0.03032037]
[1641246005164,3.43438712,3725.7,3725.6,0.03032037]
[1641246005563,3.43438712,3725.7,3725.4,0.03032037]
[1641246005963,3.43438712,3725.7,3725.6,0.03032037]
[1641246006164,3.43438712,3725.7,3725.5,0.03032037]
[1641246006366,3.43438712,3725.7,3725.6,0.03032037]
[1641246006566,3.21685933,3725.7,3725.6,0.03032037]
[1641246006966,3.21685933,3725.7,3725.1,0.03032037]
[1641246007165,3.21685933,3725.7,3725.6,0.03032037]
[1641246007366,3.21685933,3725.7,3725.2,0.03032037]
[1641246007565,1.499,3725.5,3725.2,0.03032037]
[1641246007765,2.48140458,3725.3,3725.0,1.46656636]
[1641246007966,2.48140458,3725.3,3724.8,1.46656636]
[1641246007967,3.04460458,3725.3,3724.8,1.46656636]
[1641246008166,4.54360458,3725.3,3724.8,1.46656636]
[1641246008568,2.0622,3725.3,3724.8,0.36447233]
[1641246008769,2.0622,3725.3,3724.9,0.03031557]
[1641246008970,5.00479,3725.1,3724.9,0.03031557]
[1641246009669,5.00479,3725.1,3724.6,0.03031557]
[1641246009868,5.00479,3725.1,3725.0,0.03031557]
[1641246010070,5.00479,3725.1,3724.7,0.03031557]
[1641246010268,5.00479,3725.1,3725.0,0.03031557]
[1641246010470,5.00479,3725.1,3724.8,0.03031557]
[1641246010670,5.00479,3725.1,3725.0,0.03031557]
[1641246010871,5.00479,3725.1,3724.9,0.03031557]
[1641246011173,5.00479,3725.1,3725.0,0.03031557]
[1641246011574,5.00479,3725.1,3724.4,0.03031557]
[1641246011772,5.00479,3725.1,3725.0,0.03031557]
[1641246012173,5.00479,3725.1,3724.5,0.03031557]
[1641246012374,5.00479,3725.1,3725.0,0.03031557]
[1641246012576,5.00479,3725.1,3724.6,0.03031557]
[1641246012775,5.00479,3725.1,3725.0,0.03031557]
[1641246012974,5.00479,3725.1,3724.7,0.03031557]
[1641246013174,5.23637098,3725.1,3725.0,0.03031557]
[1641246013372,5.23637098,3725.1,3724.8,0.03031557]
[1641246013775,5.23637098,3725.1,3724.4,0.03031557]
[1641246014076,5.23637098,3725.1,3724.9,0.03031557]
[1641246014373,5.23637098,3725.1,3724.4,0.03031557]
[1641246014575,5.23637098,3725.1,3724.3,2.00479]
[1641246014576,5.23637098,3725.1,3725.0,0.03031557]
[1641246014977,5.23637098,3725.1,3724.5,0.03031557]
[1641246015180,5.23637098,3725.1,3724.3,2.00479]
[1641246015181,5.23637098,3725.1,3725.0,0.03031557]
[1641246015382,5.00479,3725.1,3724.6,0.03031557]
[1641246015781,5.00479,3725.1,3725.0,0.03031557]
[1641246016084,5.00479,3725.1,3724.4,0.03031557]
[1641246016281,5.00479,3725.1,3725.0,0.03031557]
[1641246016481,5.00479,3725.1,3724.5,0.03031557]
[1641246016685,16.58479,3725.1,3724.5,0.03031557]
[1641246016982,16.58479,3725.1,3725.0,0.03031557]
[1641246017182,1.57571735,3725.0,3724.3,2.00479]
[1641246017382,5.00479,3725.1,3724.3,2.00479]
[1641246017582,2.00479,3725.1,3724.3,2.00479]
[1641246017786,2.22687055,3725.1,3724.3,2.00479]
[1641246019189,2.00479,3725.1,3724.3,2.00479]
[1641246019388,13.58479,3725.1,3724.3,2.00479]
[1641246020388,1.499,3724.8,3724.3,2.00479]
[1641246020592,3.0,3724.8,3723.9,1.4608029]
[1641246020792,1.34233233,3724.6,3723.9,1.4608029]
[1641246020990,2.00479,3724.4,3723.9,1.4608029]
[1641246021190,2.76419,3724.4,3723.9,1.4608029]
[1641246021389,2.76419,3724.4,3723.2,2.00479]
[1641246021390,2.76419,3724.4,3723.6,1.4608029]
[1641246022090,2.76419,3724.4,3723.8,2.132947]
[1641246024094,0.7594,3724.4,3723.8,0.128157]
[1641246024396,0.7594,3724.4,3723.7,1.4608029]
[1641246024894,2.01843015,3724.7,3723.7,1.5889599]
[1641246025095,2.00479,3724.4,3723.7,1.5889599]
[1641246026999,2.00479,3724.4,3723.7,3.0889599]
[1641246028299,2.00479,3724.4,3723.9,1.4608029]
[1641246031507,2.00479,3724.4,3723.8,1.4608029]
[1641246032107,2.00479,3724.4,3723.9,0.03031526]
[1641246032808,2.00479,3724.4,3724.0,1.4608029]
[1641246033208,2.00479,3724.4,3724.1,0.03031526]
[1641246033710,13.58479,3724.4,3724.1,0.03031526]
[1641246033907,1.34247649,3724.2,3724.1,0.03031526]
[1641246034108,2.14017649,3724.2,3724.1,0.03031526]
[1641246034912,2.14017649,3724.2,3723.2,7.06669687]
[1641246035109,2.00479,3723.8,3723.2,4.69835735]
[1641246035810,2.00479,3723.8,3723.2,1.75381742]
[1641246036610,2.00479,3723.8,3723.2,1.88197442]
[1641246037010,2.00479,3724.4,3723.2,1.88197442]
[1641246037212,2.00479,3724.4,3723.2,2.57657442]
[1641246037812,2.00479,3724.4,3723.4,1.5]
[1641246038514,2.00479,3724.4,3723.2,2.57657442]
[1641246041018,2.00479,3724.4,3723.3,1.5]
[1641246041820,2.00479,3724.4,3723.2,2.57657442]
[1641246044523,2.00479,3724.4,3723.2,4.07657442]
[1641246045128,2.00479,3724.4,3723.4,1.45923576]
[1641246045425,1.19611605,3725.2,3724.2,1.5]
[1641246045624,1.19611605,3725.2,3724.8,1.5]
[1641246045825,1.19611605,3725.2,3724.9,0.128157]
[1641246046025,30.5387,3726.2,3725.0,0.229991]
[1641246046225,30.5387,3726.2,3725.4,1.5]
[1641246046430,2.30746655,3726.9,3725.4,1.5]
[1641246047026,2.30646655,3726.9,3725.4,1.5]
[1641246047226,2.30646655,3726.9,3725.4,3.50479]
[1641246047227,2.00479,3726.2,3725.4,3.50479]
[1641246047629,3.21190199,3726.6,3725.4,3.50479]
[1641246048429,3.21190199,3726.6,3725.5,1.34126468]
[1641246049230,2.00479,3726.6,3725.8,2.00479]
[1641246049431,2.00479,3726.6,3725.9,0.128157]
[1641246050532,2.00479,3726.6,3725.8,2.00479]
[1641246051632,2.00479,3726.6,3725.9,0.128157]
[1641246052232,2.00479,3726.6,3725.9,1.628157]
[1641246053235,2.00479,3726.6,3725.9,0.128157]
[1641246054835,3.90824983,3726.6,3725.9,0.128157]
[1641246057739,4.72704983,3726.6,3725.9,0.128157]
[1641246065851,2.82359,3726.6,3725.9,0.128157]
[1641246070360,2.82359,3726.6,3725.8,2.00479]
[1641246070559,5.36734898,3726.3,3725.8,2.00479]
[1641246072361,5.36734898,3726.3,3725.4,3.46008067]
[1641246072562,1.499,3725.6,3725.4,1.45529067]
[1641246072760,1.499,3725.6,3724.2,4.97993585]
[1641246072761,2.2181,3725.6,3724.2,3.63822667]
[1641246072960,5.36905058,3725.1,3724.2,3.63822667]
[1641246073562,2.00479,3724.6,3724.2,3.63822667]
[1641246073762,2.77929,3724.6,3724.2,3.63822667]
[1641246073964,2.77929,3724.6,3723.8,2.00479]
[1641246073965,2.77929,3724.6,3724.1,2.37177637]
[1641246074265,8.14903861,3724.6,3724.1,2.37177637]
[1641246074463,1.30134636,3724.5,3724.1,2.37177637]
[1641246075265,1.30134636,3724.5,3723.8,4.91537133]
[1641246075666,1.30134636,3724.5,3723.8,2.00479]
[1641246078568,1.30134636,3724.5,3723.2,1.5]
[1641246079568,1.30134636,3724.5,3723.8,2.00479]
[1641246082473,1.30134636,3724.5,3723.9,1.45669141]
[1641246082671,1.30134636,3724.5,3724.0,0.128157]
[1641246082874,1.20711199,3725.1,3724.4,2.8414482]
[1641246083074,1.20711199,3725.1,3724.6,1.5]
[1641246083273,2.26333498,3726.0,3724.8,1.5]
[1641246083474,2.26333498,3726.0,3725.6,2.00479]
[1641246083673,2.26333498,3726.0,3725.6,2.970481]
[1641246084775,2.26333498,3726.0,3725.6,3.098638]
[1641246084975,0.21083091,3726.5,3725.6,3.098638]
[1641246086176,0.21083091,3726.5,3725.6,2.970481]
[1641246086378,0.21083091,3726.5,3725.6,2.74049]
[1641246086777,3.6075141,3726.2,3725.6,2.74049]
[1641246086979,0.8576371,3726.1,3725.6,2.74049]
[1641246087878,0.8576371,3726.1,3725.6,2.868647]
[1641246088680,1.81066798,3726.9,3725.6,2.868647]
[1641246089579,1.81066798,3726.9,3726.2,2.00479]
[1641246090480,1.99824948,3726.9,3726.2,2.00479]
[1641246090679,0.1875815,3726.9,3726.2,2.00479]
[1641246092482,2.983154,3726.9,3726.2,2.00479]
[1641246094080,2.7955725,3726.9,3726.2,2.00479]
[1641246094681,2.7955725,3726.9,3726.3,26.6529661]
[1641246094882,2.7955725,3726.9,3726.4,0.128157]
[1641246095080,2.7955725,3726.9,3726.4,1.628157]
[1641246095580,2.7955725,3726.9,3726.4,0.128157]
[1641246096983,2.7955725,3726.9,3726.4,1.628157]
[1641246098985,2.69094899,3727.4,3726.4,1.628157]
[1641246099182,2.00479,3727.4,3726.4,1.628157]
[1641246099783,2.00479,3727.4,3726.7,2.00479]
[1641246101687,1.20932635,3727.7,3726.7,2.00479]
[1641246101888,1.20932635,3727.8,3726.7,2.00479]
[1641246102688,6.57454869,3727.8,3726.7,2.00479]
[1641246102889,5.36577351,3727.4,3726.7,2.00479]
[1641246103088,6.19187351,3727.4,3726.7,2.00479]
[1641246104289,1.28086202,3727.3,3726.7,2.00479]
[1641246105089,6.19187351,3727.4,3726.8,1.628157]
[1641246105291,4.19426169,3728.8,3727.0,1.5]
[1641246105691,6.19905169,3728.8,3727.9,2.00479]
[1641246107293,0.15148197,3728.7,3727.9,2.00479]
[1641246107493,0.66278197,3728.7,3727.9,2.00479]
[1641246107693,0.5113,3728.7,3727.9,2.00479]
[1641246108497,0.5113,3728.7,3728.0,0.128157]
[1641246109097,6.19905169,3728.8,3728.0,0.128157]
[1641246113011,6.19905169,3728.8,3728.0,1.628157]
[1641246113206,6.19905169,3728.8,3728.3,1.5]
[1641246113404,6.19905169,3728.8,3728.0,1.46852099]
[1641246113803,6.19905169,3728.8,3728.0,2.96852099]
[1641246114005,6.19905169,3728.8,3728.3,2.00479]
[1641246120610,3.10098072,3728.8,3728.3,2.00479]
[1641246122013,1.56861224,3728.4,3728.3,2.00479]
[1641246122214,2.33451224,3728.4,3728.3,2.00479]
[1641246125817,2.33451224,3728.4,3728.3,2.234781]
[1641246126422,0.7659,3728.4,3728.3,2.234781]
[1641246126717,1.88218575,3728.7,3728.3,2.234781]
[1641246128319,1.88218575,3728.7,3728.3,2.00479]
[1641246131619,3.0,3728.6,3728.3,2.00479]
[1641246131820,3.25991519,3728.3,3727.9,2.00479]
[1641246132722,4.03582732,3728.3,3727.9,2.00479]
[1641246133622,5.53482732,3728.3,3727.9,2.00479]
[1641246134023,4.03582732,3728.3,3727.9,2.00479]
[1641246135125,5.53482732,3728.3,3727.9,2.00479]
[1641246135727,17.11482732,3728.3,3727.9,2.00479]
[1641246135928,3.0,3728.0,3727.4,2.00479]
[1641246136929,3.0,3728.0,3727.0,2.00479]
[1641246137330,4.292421,3727.9,3727.0,2.00479]
[1641246138130,2.00479,3727.6,3727.0,2.00479]
[1641246138429,1.22869006,3727.5,3727.0,2.132947]
[1641246139430,1.22869006,3727.5,3727.0,2.00479]
[1641246141531,0.80485677,3727.4,3727.0,2.00479]
[1641246143631,0.80485677,3727.4,3726.1,32.28947905]
[1641246144231,1.22869006,3727.5,3726.7,2.00479]
[1641246144631,1.22869006,3727.5,3726.8,0.128157]
[1641246147735,2.00479,3727.6,3726.8,0.128157]
[1641246148440,0.80474598,3727.9,3727.2,2.00479]
[1641246149438,2.00479,3728.0,3727.2,2.00479]
[1641246158352,2.00479,3727.6,3726.9,1.34074677]
[1641246158551,2.00479,3727.6,3726.7,2.00479]
[1641246158953,5.00479,3727.6,3726.7,2.00479]
[1641246159352,2.00479,3727.6,3726.7,2.00479]
[1641246159950,1.16326102,3727.5,3726.7,2.00479]
[1641246160353,1.499,3727.4,3726.7,2.00479]
[1641246164858,1.20932635,3727.2,3726.7,2.00479]
[1641246165259,1.20932635,3727.2,3726.7,2.132947]
[1641246165860,1.20932635,3727.2,3726.7,2.00479]
[1641246166061,1.20932635,3727.1,3726.7,2.00479]
[1641246167060,0.7022384,3727.0,3726.7,2.00479]
[1641246167361,0.80495998,3726.9,3726.7,2.00479]
[1641246168761,1.42336603,3726.8,3726.7,2.00479]
[1641246169363,1.20932635,3726.8,3726.7,2.00479]
[1641246169761,0.80495998,3726.9,3726.7,2.00479]
[1641246173170,0.80495998,3726.9,3726.3,2.00479]
[1641246173467,0.80495998,3726.9,3725.2,1.34135463]
[1641246173669,0.80495998,3726.9,3725.2,25.0465]
[1641246174572,2.00479,3726.7,3725.8,2.00479]
[1641246174769,4.70562162,3726.5,3725.8,2.00479]
[1641246178174,4.70562162,3726.5,3725.8,2.132947]
[1641246178775,4.70562162,3726.5,3725.8,2.00479]
[1641246182179,32.42529397,3726.4,3725.8,2.00479]
[1641246182382,32.42529397,3726.4,3725.2,25.0465]
[1641246182383,1.34177759,3726.2,3725.2,25.0465]
[1641246182582,4.00958,3725.3,3724.9,1.44867905]
[1641246182780,5.83544765,3725.3,3724.9,1.44867905]
[1641246183079,5.83544765,3725.3,3724.0,27.27708133]
[1641246183280,5.83544765,3725.3,3724.6,1.44015773]
[1641246183478,1.499,3725.2,3724.6,1.44015773]
[1641246183679,1.15708139,3725.0,3724.0,24.3665]
[1641246183878,2.65608139,3725.0,3723.8,2.91058133]
[1641246184379,1.499,3724.7,3723.8,2.91058133]
[1641246184579,2.00479,3724.0,3723.8,2.91058133]
[1641246184781,2.81209,3724.0,3723.9,0.229991]
[1641246185582,2.81209,3724.0,3722.8,2.00479]
[1641246186581,2.00479,3723.4,3722.8,2.00479]
[1641246186780,2.00479,3723.4,3722.8,2.132947]
[1641246187483,2.00479,3723.4,3722.8,2.00479]
[1641246188503,0.18581934,3723.4,3722.8,2.00479]
[1641246188883,0.18581934,3723.4,3722.9,0.128157]
[1641246191784,2.00479,3724.0,3722.9,0.128157]
[1641246192586,2.00479,3724.0,3722.8,2.00479]
[1641246192788,2.00479,3724.0,3723.3,2.00479]
[1641246195590,2.00479,3724.0,3723.4,0.128157]
[1641246195793,2.00479,3724.0,3723.3,2.00479]
[1641246197397,2.30464429,3723.8,3723.3,2.00479]
[1641246197595,2.30464429,3723.8,3722.8,2.00479]
[1641246198697,2.00479,3723.4,3722.8,2.00479]
[1641246200198,2.00479,3723.4,3721.9,25.478]
[1641246200199,0.80577501,3723.2,3721.9,25.478]
[1641246200403,4.55877501,3723.2,3721.9,25.478]
[1641246200604,0.80590159,3722.6,3721.9,25.478]
[1641246200801,2.00479,3722.0,3721.9,25.478]
[1641246201001,2.82739,3722.0,3721.9,0.229991]
[1641246201202,2.82739,3722.0,3721.6,1.47079932]
[1641246201405,2.82739,3722.0,3721.6,1.34264232]
[1641246201602,2.82739,3722.0,3721.3,1.43617026]
[1641246201902,2.82739,3722.0,3721.2,1.34279917]
[1641246202501,2.82739,3722.0,3721.0,2.00479]
[1641246203402,2.82739,3722.0,3720.7,23.8423]
[1641246203600,5.82739,3722.0,3720.7,23.8423]
[1641246203803,0.80608526,3721.7,3720.4,1.34309495]
[1641246204203,0.86268328,3721.6,3720.4,2.84309495]
[1641246204806,2.00479,3720.8,3720.4,2.84309495]
[1641246205005,2.00479,3720.8,3720.5,0.128157]
[1641246205305,1e-08,3720.8,3720.6,0.229991]
[1641246206408,2.00479,3721.2,3720.6,0.229991]
[1641246207210,0.1848067,3721.2,3720.6,0.229991]
[1641246209212,0.1848067,3721.2,3719.9,2.00479]
[1641246209415,3.60148346,3721.2,3719.1,48.25047676]
[1641246209612,2.03427867,3720.8,3719.1,47.68467676]
[1641246210212,3.22589328,3720.8,3719.1,24.16687676]
[1641246210616,3.22589328,3720.8,3719.3,1.5]
[1641246210816,2.00479,3720.2,3719.5,1.5]
[1641246211016,2.78309,3720.2,3719.6,0.128157]
[1641246216824,2.78309,3720.2,3719.7,2.00479]
[1641246217225,0.35573933,3720.2,3719.7,2.00479]
[1641246217427,3.1537321,3721.2,3719.7,2.00479]
[1641246218230,0.5741,3721.2,3720.3,1.5]
[1641246218432,23.9246,3721.3,3720.4,0.128157]
[1641246218628,23.9246,3721.3,3720.3,1.5]
[1641246218831,1.00925094,3721.8,3720.8,2.00479]
[1641246218832,2.00479,3721.7,3720.8,2.00479]
[1641246220531,2.00479,3721.7,3720.9,0.128157]
[1641246220930,1.00925094,3721.8,3720.9,0.128157]
[1641246222733,22.7077,3722.2,3721.3,1.5]
[1641246223033,23.91279,3722.9,3722.0,2.00479]
[1641246223235,2.00479,3722.9,3722.1,0.128157]
[1641246223632,2.00379,3722.9,3722.1,0.128157]
[1641246223836,23.6588,3723.4,3722.1,0.128157]
[1641246224033,1.34271623,3723.6,3722.1,0.128157]
[1641246224833,1.34271623,3723.6,3722.8,2.00479]
[1641246225434,1.499,3723.4,3722.8,2.00479]
[1641246225634,1.499,3723.2,3722.0,2.00479]
[1641246225833,2.1676,3723.4,3722.0,2.00479]
[1641246226236,0.6686,3723.4,3722.0,2.00479]
[1641246226838,2.00479,3723.2,3722.0,2.00479]
[1641246229440,2.00479,3723.2,3722.2,1.5]
[1641246229740,2.00479,3723.2,3722.2,2.1052]
[1641246229939,2.00479,3723.2,3722.2,0.6052]
[1641246230139,5.37135976,3723.5,3722.5,1.5]
[1641246230341,24.71538947,3723.9,3722.7,1.5]
[1641246230540,24.71538947,3723.9,3722.4,1.34235756]
[1641246230941,24.71538947,3723.9,3722.9,2.00479]
[1641246231141,24.71538947,3723.9,3723.0,0.128157]
[1641246231342,0.81838947,3723.9,3723.0,0.128157]
[1641246231543,3.81838947,3723.9,3722.9,2.00479]
[1641246231742,2.56309,3723.7,3722.9,2.00479]
[1641246231942,3.0,3723.3,3722.9,2.00479]
[1641246232944,2.23357192,3723.4,3722.9,2.00479]
[1641246233146,0.95870968,3723.3,3722.9,2.00479]
[1641246234945,2.23357192,3723.4,3722.9,2.00479]
[1641246235146,2.00479,3723.7,3722.9,2.00479]
[1641246236149,2.00479,3723.7,3722.9,2.71249]
[1641246236750,2.00479,3723.7,3722.9,4.21249]
[1641246236949,2.00479,3723.7,3722.9,2.71249]
[1641246238550,2.00479,3723.7,3722.9,2.00479]
[1641246238952,3.0,3723.4,3722.9,2.00479]
[1641246239154,3.6066,3723.4,3722.9,2.00479]
[1641246239555,3.24915289,3723.2,3722.9,2.00479]
[1641246240955,0.8236836,3723.1,3722.9,2.00479]
[1641246241756,3.42269398,3723.1,3722.9,2.00479]
[1641246243255,3.42269398,3723.1,3722.9,2.234781]
[1641246243455,3.42269398,3723.1,3722.9,2.00479]
[1641246244757,3.42269398,3723.1,3721.5,23.5844]
[1641246245158,2.00479,3722.8,3721.6,2.00479]
[1641246245357,2.00479,3722.8,3722.1,0.128157]
[1641246246157,2.00479,3722.8,3721.6,2.00479]
[1641246248460,1.243901,3722.4,3721.6,2.00479]
[1641246248760,1.986701,3722.4,3721.6,2.00479]
[1641246249160,3.991491,3722.4,3721.6,2.00479]
[1641246249460,1.27630689,3722.3,3721.6,2.00479]
[1641246250061,1.27630689,3722.3,3721.2,2.00479]
[1641246251162,2.00479,3722.0,3721.2,2.00479]
[1641246251562,2.00479,3722.0,3721.3,0.128157]
[1641246253765,2.00479,3722.0,3721.3,1.56432726]
[1641246254965,2.00479,3722.0,3721.4,1.43617026]
[1641246257264,1.27630689,3722.3,3721.6,2.00479]
[1641246257468,5.16493024,3722.3,3721.6,2.00479]
[1641246258971,0.30569292,3722.2,3721.6,2.00479]
[1641246259169,0.90519292,3722.2,3721.6,2.00479]
[1641246259370,3.88911815,3721.8,3721.6,2.00479]
[1641246259571,6.88911815,3721.8,3721.2,2.00479]
[1641246260670,7.9530247,3721.8,3721.2,2.00479]
[1641246261473,1.499,3721.6,3720.7,2.00479]
[1641246261676,0.30569292,3721.7,3720.6,1.43617026]
[1641246261677,1.30762198,3721.1,3720.6,1.43617026]
[1641246261872,3.63122198,3721.1,3720.6,1.43617026]
[1641246262075,2.13222198,3721.1,3720.6,1.43617026]
[1641246262477,1.34376092,3720.7,3719.7,2.91058133]
[1641246262673,3.0,3720.6,3719.7,2.91058133]
[1641246263276,2.00479,3720.3,3719.7,2.91058133]
[1641246263474,2.80059,3720.3,3719.7,2.91058133]
[1641246263777,3.52473474,3720.3,3719.7,2.91058133]
[1641246264076,3.52473474,3720.3,3719.8,0.128157]
[1641246264374,2.80059,3720.3,3719.8,0.128157]
[1641246264574,2.00479,3720.3,3719.8,0.128157]
[1641246269078,2.00479,3720.3,3719.5,2.00479]
[1641246269278,2.79529,3720.3,3719.5,2.00479]
[1641246269880,2.79529,3720.3,3719.6,0.128157]
[1641246272381,2.79529,3720.3,3720.0,1.46355959]
[1641246273683,2.79529,3720.3,3719.6,0.128157]
[1641246281293,0.7905,3720.3,3719.6,0.128157]
[1641246281497,1.70834668,3720.9,3719.6,0.128157]
[1641246281694,1.70834668,3720.9,3719.6,0.945657]
[1641246281895,3.71313668,3720.9,3720.1,2.00479]
[1641246282796,1.70834668,3720.9,3720.1,2.00479]
[1641246284000,1.70834668,3720.9,3720.7,2.00479]
[1641246285400,1.70834668,3720.9,3720.5,0.128157]
[1641246286001,1.70834668,3720.9,3720.7,2.00479]
[1641246286202,1.70834668,3720.9,3720.7,2.234781]
[1641246286403,1.70834668,3720.9,3720.7,2.00479]
[1641246289905,5.00063188,3721.0,3720.3,2.00479]
[1641246291605,1.499,3720.4,3719.1,24.1265]
[1641246291806,32.52664463,3720.4,3719.1,24.1265]
[1641246292005,2.00479,3720.3,3719.5,2.00479]
[1641246292604,2.88437055,3720.3,3719.5,2.00479]
[1641246292809,2.88437055,3720.3,3719.6,0.128157]
[1641246293209,2.00479,3720.3,3719.6,0.128157]
[1641246298021,0.79882706,3720.6,3719.6,0.128157]
[1641246298219,0.87096438,3721.1,3719.7,1.5]
[1641246298418,0.87096438,3721.1,3719.9,1.5]
[1641246298620,0.87096438,3721.1,3719.9,2.1664]
[1641246300021,2.87575438,3721.1,3720.3,2.00479]